bitfinex/quotes_ETHUSD_20250219
["timestamp","ask_amount","ask_price","bid_price","bid_amount"]
[1739995898738,0.05287512,2727.4,2727.1,3.66689]
[1739995898934,0.0528232,2727.3,2727.1,3.66689]
[1739995899125,7.57379362,2727.6,2727.0,3.66691]
[1739995899328,7.57379362,2727.6,2727.0,7.33387]
[1739995899513,0.05292702,2727.5,2727.0,3.66691]
[1739995899710,0.05292702,2727.5,2727.0,7.33387]
[1739995900011,0.05292702,2727.5,2727.1,3.66681]
[1739995900208,0.05292702,2727.5,2727.1,3.66682]
[1739995900718,3.66623,2727.6,2727.1,3.66682]
[1739995900919,0.05304792,2727.4,2727.1,3.66682]
[1739995901149,0.05309983,2727.5,2727.1,3.66682]
[1739995901447,1.75759652,2727.6,2727.1,3.66677]
[1739995901812,0.05309983,2727.5,2727.1,3.66677]
[1739995902011,3.71945983,2727.5,2727.0,3.66703]
[1739995902336,1.13665108,2727.5,2727.0,3.66703]
[1739995902837,0.8119,2727.4,2727.0,3.66693]
[1739995903345,0.05295897,2727.3,2727.0,3.66693]
[1739995908261,0.05295897,2727.3,2726.8,0.0568]
[1739995908423,3.12207164,2727.0,2726.8,0.0568]
[1739995908630,1.42970316,2726.9,2726.8,0.0568]
[1739995908830,1.48228357,2726.9,2726.8,0.0568]
[1739995912777,5.14944357,2726.9,2726.8,0.0568]
[1739995913392,5.69944357,2726.9,2726.8,0.0568]
[1739995913745,2.03228357,2726.9,2726.8,0.0568]
[1739995913950,0.80338041,2726.9,2726.8,0.0568]
[1739995914887,1.55048001,2726.9,2726.8,0.0568]
[1739995915185,8.88971165,2726.9,2726.8,0.0568]
[1739995919087,5.22255165,2726.9,2726.8,0.0568]
[1739995919590,0.80338041,2726.9,2726.8,0.0568]
[1739995920365,2.15311945,2726.9,2726.8,0.0568]
[1739995921095,6.37027945,2726.9,2726.8,0.0568]
[1739995921464,6.37027945,2726.9,2725.9,3.66843]
[1739995921465,3.66807,2726.3,2725.3,12.58923]
[1739995921666,3.12207164,2726.0,2725.5,3.66894]
[1739995921962,0.04925346,2725.9,2725.4,3.66911]
[1739995922145,0.7745,2725.6,2725.1,9.03946]
[1739995922396,0.04897939,2725.5,2725.1,3.66946]
[1739995923394,0.04897939,2725.5,2725.0,0.8291]
[1739995923621,0.04897939,2725.5,2725.1,3.66957]
[1739995923773,0.04897939,2725.5,2724.9,3.66976]
[1739995923774,0.44353449,2725.5,2724.9,3.66976]
[1739995924149,0.44353449,2725.5,2724.8,6.128]
[1739995924150,3.12207164,2725.4,2724.8,0.758]
[1739995924397,0.04776686,2725.3,2724.7,3.67001]
[1739995924581,0.774,2725.1,2724.7,3.67001]
[1739995924791,0.04761084,2725.0,2724.5,7.34066]
[1739995925095,0.04761084,2725.0,2724.7,3.67003]
[1739995925308,0.04761084,2725.0,2724.6,3.67015]
[1739995925467,0.04761084,2725.0,2724.2,5.37]
[1739995925468,3.12207164,2724.8,2724.2,4.45898]
[1739995925651,3.12207164,2724.8,2724.3,3.67062]
[1739995925857,0.04648676,2724.7,2724.3,3.67062]
[1739995926055,0.04648676,2724.7,2724.4,3.67049]
[1739995926300,3.12207164,2724.8,2724.5,3.67039]
[1739995926600,0.04643472,2724.6,2724.4,3.67049]
[1739995926802,0.04638268,2724.5,2724.4,3.67049]
[1739995927187,0.8138,2724.7,2724.2,3.67075]
[1739995927397,0.04638268,2724.5,2724.2,3.67075]
[1739995927601,0.04643472,2724.6,2724.2,3.67075]
[1739995927758,0.50606014,2724.6,2724.2,3.67075]
[1739995928268,0.04638268,2724.5,2724.2,3.67071]
[1739995929709,0.04638268,2724.5,2724.0,3.67095]
[1739995929875,0.04638268,2724.5,2724.1,3.67084]
[1739995930071,3.16845432,2724.5,2724.1,3.67084]
[1739995930273,0.36745145,2724.4,2723.8,3.67128]
[1739995930600,0.8095003,2724.3,2723.8,3.67125]
[1739995930801,0.8095003,2724.3,2723.8,7.3425]
[1739995931008,0.0457003,2724.3,2723.6,0.7699]
[1739995931312,0.0457003,2724.3,2724.2,3.6708]
[1739995931803,1.26986014,2724.6,2724.2,3.6708]
[1739995932306,0.04585329,2724.5,2724.3,3.67057]
[1739995932507,0.04585329,2724.5,2724.4,3.67053]
[1739995933064,3.12207164,2724.7,2724.5,3.67036]
[1739995934201,3.60998391,2724.7,2724.3,3.67057]
[1739995934405,3.60998391,2724.7,2724.2,3.6708]
[1739995934600,3.60998391,2724.7,2724.1,3.67091]
[1739995934803,3.60998391,2724.7,2724.2,3.67077]
[1739995935007,3.60998391,2724.7,2723.9,0.7968]
[1739995935205,0.7594,2724.9,2724.7,3.67003]
[1739995935405,0.7594,2724.9,2724.6,3.67021]
[1739995935570,0.7594,2724.9,2724.5,3.67031]
[1739995935764,0.7594,2724.9,2724.4,0.7968]
[1739995936000,3.88147164,2724.9,2724.3,3.67055]
[1739995936308,0.82737661,2724.8,2724.4,3.67046]
[1739995936510,0.82737661,2724.8,2724.5,3.67033]
[1739995937521,0.0455912,2724.7,2724.5,3.67033]
[1739995937684,0.0455912,2724.7,2724.6,3.67026]
[1739995937887,0.7594,2724.9,2724.6,3.67026]
[1739995938084,0.0455912,2724.7,2724.6,3.67026]
[1739995938407,0.55,2724.8,2724.2,0.8187]
[1739995938608,3.12207164,2724.7,2724.1,3.67091]
[1739995938912,3.12207164,2724.7,2724.2,3.6708]
[1739995939095,7.9693478,2724.7,2724.1,3.67091]
[1739995939295,0.7734,2724.6,2724.2,3.67078]
[1739995939811,0.7734,2724.6,2724.1,3.67083]
[1739995940315,0.7734,2724.6,2724.2,3.67067]
[1739995940468,0.7734,2724.6,2724.0,6.17]
[1739995940671,0.8233,2724.9,2724.5,3.67037]
[1739995941163,0.04390421,2724.8,2724.5,3.67037]
[1739995941368,0.04390421,2724.8,2724.4,3.67052]
[1739995941586,0.04390421,2724.8,2724.3,3.67056]
[1739995941769,0.04390421,2724.8,2724.4,3.67044]
[1739995941994,0.04390421,2724.8,2724.3,3.67056]
[1739995942310,0.04390421,2724.8,2724.5,3.67039]
[1739995942810,0.04390421,2724.8,2724.4,3.67052]
[1739995943306,0.59390421,2724.8,2724.4,3.67052]
[1739995944411,0.59390421,2724.8,2724.3,3.67056]
[1739995944609,0.59390421,2724.8,2724.4,3.67052]
[1739995945272,0.59390421,2724.8,2724.4,3.67045]
[1739995945609,0.04390421,2724.8,2724.7,3.67012]
[1739995946311,0.04390421,2724.8,2724.5,0.8295]
[1739995946487,0.04390421,2724.8,2724.5,4.49985]
[1739995946683,0.04390421,2724.8,2724.6,3.6702]
[1739995946884,0.04390421,2724.8,2724.5,4.49985]
[1739995947070,0.04390421,2724.8,2724.7,3.67012]
[1739995947499,5.36,2725.3,2724.9,3.6698]
[1739995947690,0.8028,2725.4,2724.9,3.66979]
[1739995948023,1.52988012,2725.4,2725.1,3.66947]
[1739995948174,0.7889,2725.7,2725.5,3.66905]
[1739995948374,0.27,2725.8,2725.4,3.66917]
[1739995948617,3.12207164,2725.6,2725.0,3.66964]
[1739995948841,1.3389,2725.5,2725.0,3.66964]
[1739995949043,1.3389,2725.5,2725.1,3.66958]
[1739995949249,0.7889,2725.5,2725.2,3.66945]
[1739995949604,0.55,2725.7,2725.3,3.66932]
[1739995950406,1.52532241,2725.8,2725.3,3.66932]
[1739995950606,5.19399241,2725.8,2725.2,3.66942]
[1739995950952,6.47454482,2725.8,2725.1,3.66949]
[1739995951140,6.47454482,2725.8,2725.3,3.6693]
[1739995951532,0.7702,2726.0,2725.0,0.8077]
[1739995951713,5.36,2726.6,2725.8,3.66852]
[1739995951714,0.7702,2726.4,2725.8,3.66852]
[1739995952211,0.7702,2726.4,2725.9,3.66844]
[1739995952406,1.4906596,2726.4,2726.0,3.66837]
[1739995952607,1.4906596,2726.4,2725.8,3.66861]
[1739995953049,1.4906596,2726.4,2725.8,7.33718]
[1739995953437,2.34579772,2726.4,2725.8,3.66857]
[1739995954135,0.7702,2726.4,2726.0,3.66835]
[1739995954339,0.7702,2726.4,2725.7,0.8077]
[1739995954926,0.7702,2726.4,2726.0,3.66829]
[1739995955138,0.7702,2726.4,2725.8,3.66853]
[1739995955339,0.7702,2726.4,2726.0,3.66836]
[1739995958354,1.2882705,2726.4,2725.8,3.66855]
[1739995958650,3.66797,2726.3,2725.7,4.47638]
[1739995958808,7.33603,2726.3,2725.6,9.03885]
[1739995959010,3.12207164,2726.1,2725.6,9.03885]
[1739995959211,3.12207164,2725.8,2725.4,4.48896]
[1739995959416,4.43626,2725.7,2725.1,5.37]
[1739995959609,4.43626,2725.7,2725.1,9.03958]
[1739995959829,4.43619,2725.7,2725.1,9.0395]
[1739995960027,0.78282616,2725.6,2725.1,9.0395]
[1739995960246,1.51688107,2725.6,2725.1,9.0395]
[1739995960451,0.78282616,2725.6,2725.2,3.66945]
[1739995961249,0.78282616,2725.6,2725.2,3.66936]
[1739995961451,0.7674,2725.9,2725.5,3.66896]
[1739995961766,1.0374,2726.2,2725.5,3.66905]
[1739995962430,4.70552,2726.2,2725.7,3.66877]
[1739995962611,3.66827,2726.1,2725.7,3.66877]
[1739995963252,3.66827,2726.1,2725.5,3.66905]
[1739995963460,0.7685,2725.9,2725.1,5.37]
[1739995963643,3.66872,2725.8,2725.2,3.66942]
[1739995964160,0.7685,2725.9,2725.2,3.66942]
[1739995964335,0.7685,2726.1,2725.6,3.66889]
[1739995964538,0.7685,2726.1,2725.7,3.6687]
[1739995965044,6.79052164,2726.0,2725.4,3.66906]
[1739995965247,6.79052164,2726.0,2725.4,7.33817]
[1739995965423,6.79052164,2726.0,2725.4,3.66906]
[1739995965625,1.12273716,2725.9,2725.4,3.66906]
[1739995965824,1.12273716,2725.9,2725.4,7.33814]
[1739995966020,1.12273716,2725.9,2725.4,3.66906]
[1739995966764,4.79131716,2725.9,2725.4,3.66906]
[1739995967126,4.79131716,2725.9,2725.3,3.66931]
[1739995967819,3.12207164,2725.7,2725.1,5.37]
[1739995968241,6.79093164,2725.7,2725.1,9.03948]
[1739995968444,6.79093164,2725.7,2725.1,5.37]
[1739995968649,0.7685,2725.5,2725.1,5.37]
[1739995969260,0.7685,2725.5,2725.0,3.66965]
[1739995969462,0.7685,2725.5,2725.0,3.66963]
[1739995969623,0.7685,2725.5,2725.1,3.66952]
[1739995969819,4.43715,2725.8,2725.2,3.66933]
[1739995970039,1.579076,2725.8,2725.3,3.66922]
[1739995970466,0.7685,2725.8,2725.0,3.6697]
[1739995970758,0.7685,2725.8,2725.5,3.66899]
[1739995971860,0.7685,2725.8,2725.4,3.66913]
[1739995972877,0.7685,2725.8,2725.3,3.6692]
[1739995973176,0.7685,2725.8,2725.4,3.66912]
[1739995973558,0.7685,2725.8,2725.0,0.776]
[1739995973881,5.36,2726.1,2725.8,3.66851]
[1739995975075,0.73675036,2726.2,2725.8,3.66851]
[1739995975385,0.7801,2726.3,2726.0,3.6683]
[1739995975669,0.27,2726.4,2726.0,3.6683]
[1739995976860,1.00461763,2726.4,2726.0,3.6683]
[1739995977171,0.73461763,2726.4,2726.2,3.66808]
[1739995977479,0.7801,2726.5,2726.2,3.66804]
[1739995977669,3.12207164,2726.7,2726.2,3.66804]
[1739995977881,7.5737188,2726.7,2726.2,3.66804]
[1739995978182,8.32002971,2726.7,2726.0,3.66828]
[1739995978476,4.65258971,2726.7,2726.1,3.66813]
[1739995979243,8.32003971,2726.7,2726.1,3.66813]
[1739995979444,8.32003971,2726.7,2726.0,3.66828]
[1739995979698,8.32003971,2726.7,2726.1,3.66818]
[1739995980383,8.32003971,2726.7,2726.0,3.66828]
[1739995980682,8.32003971,2726.7,2726.1,3.66824]
[1739995981479,8.32003971,2726.7,2726.1,3.66816]
[1739995981684,8.32003971,2726.7,2726.1,7.33631]
[1739995981859,3.66764,2726.6,2726.0,3.66828]
[1739995982059,4.57782397,2726.6,2726.0,3.66828]
[1739995982690,4.57782397,2726.6,2726.1,3.66819]
[1739995983351,8.32001971,2726.7,2726.1,3.66818]
[1739995983552,3.66763,2726.6,2726.0,3.66828]
[1739995983752,3.66763,2726.6,2726.0,7.33657]
[1739995983953,8.32004971,2726.7,2726.0,3.66829]
[1739995984254,0.74631091,2726.7,2726.2,3.66802]
[1739995984890,0.8167,2727.0,2726.5,3.6676]
[1739995985090,0.8167,2727.4,2726.8,3.66724]
[1739995985384,5.22107368,2727.4,2726.8,3.6672]
[1739995985589,3.66663,2727.3,2726.6,3.66748]
[1739995985891,0.8106,2727.1,2726.4,9.03775]
[1739995986328,3.66718,2726.9,2726.4,5.37]
[1739995986472,3.12207164,2727.0,2726.5,3.66762]
[1739995986823,0.8106,2727.1,2726.5,3.66762]
[1739995987400,0.8106,2727.1,2726.4,9.03772]
[1739995987599,1.57054716,2727.1,2726.4,9.03772]
[1739995987880,5.23746716,2727.1,2726.5,3.66763]
[1739995988422,6.78919164,2727.0,2726.4,5.37]
[1739995988977,3.12207164,2727.0,2726.4,9.03783]
[1739995989377,6.78910164,2727.0,2726.4,9.03783]
[1739995989577,3.66766,2726.6,2726.4,5.37]
[1739995989782,3.12207164,2726.7,2726.4,5.37]
[1739995989983,6.78954164,2726.7,2726.1,3.66823]
[1739995990916,3.12207164,2726.7,2726.1,3.66823]
[1739995991212,6.78953164,2726.7,2726.1,3.66823]
[1739995991419,7.84671816,2726.7,2726.1,3.66817]
[1739995992589,3.66776,2726.5,2725.9,3.6684]
[1739995992799,3.89297164,2726.4,2725.6,0.0936]
[1739995992998,0.55,2726.2,2725.6,0.0936]
[1739995993195,0.55,2726.3,2725.6,0.0936]
[1739995993398,0.7709,2726.4,2726.0,3.66829]
[1739995993793,0.7709,2726.4,2725.8,3.66854]
[1739995994098,4.43875,2726.4,2725.8,3.66854]
[1739995994825,0.7709,2726.4,2725.9,3.66847]
[1739995995020,0.7709,2726.4,2726.0,3.66831]
[1739995995206,0.271,2726.5,2726.0,8.13982]
[1739995995519,1.82488652,2726.7,2726.2,3.66803]
[1739995995726,1.82488652,2726.7,2726.1,3.66815]
[1739995995922,5.49234652,2726.7,2726.1,3.66815]
[1739995996120,1.82488652,2726.7,2726.2,3.66809]
[1739995996624,1.82488652,2726.7,2726.2,3.66803]
[1739995996823,0.7677,2726.7,2726.2,3.66803]
[1739995997718,0.7677,2726.7,2726.3,3.66784]
[1739995997924,0.7365314,2726.8,2726.4,3.66783]
[1739995998424,0.7365314,2726.8,2725.8,9.03862]
[1739995998425,0.7813,2726.4,2725.8,9.03851]
[1739995998624,5.20633516,2726.4,2725.8,9.03851]
[1739995999426,3.66797,2726.3,2725.8,5.37]
[1739996000129,3.66797,2726.3,2725.8,9.03864]
[1739996000307,7.33606,2726.3,2725.8,5.37]
[1739996000501,3.66797,2726.3,2725.8,5.37]
[1739996000702,4.18881852,2726.2,2725.8,5.37]
[1739996001633,3.66831,2726.1,2725.8,5.37]
[1739996001791,3.66831,2726.1,2725.6,3.76245]
[1739996002196,4.18881852,2726.2,2725.6,0.0936]
[1739996002432,3.6683,2726.1,2725.6,0.0936]
[1739996002731,0.55,2725.7,2725.6,0.0936]
[1739996002905,4.21878,2725.7,2725.6,0.0936]
[1739996004302,0.55,2725.7,2725.6,0.0936]
[1739996004936,4.21878,2725.7,2725.6,0.0936]
[1739996008326,0.55,2725.7,2725.6,0.0936]
[1739996008529,5.10250624,2725.7,2725.6,0.0936]
[1739996014161,5.89680624,2725.7,2725.6,0.0936]
[1739996014314,3.66954,2725.2,2724.7,0.8144]
[1739996014507,7.61191164,2725.2,2724.7,0.8144]
[1739996014725,7.61191164,2725.2,2724.5,3.67031]
[1739996014726,3.66966,2725.1,2724.5,4.47981]
[1739996014925,4.79781716,2725.1,2724.5,4.47981]
[1739996015120,4.79781716,2725.1,2724.5,8.15014]
[1739996015326,4.79774716,2725.1,2724.6,3.67018]
[1739996016013,3.66974,2725.0,2724.3,9.8297]
[1739996016333,3.66999,2724.8,2724.3,0.7891]
[1739996017036,3.66999,2724.8,2724.3,4.45969]
[1739996017228,3.39207164,2724.9,2724.4,3.67046]
[1739996017427,3.39207164,2724.9,2724.3,4.45969]
[1739996017639,7.06193164,2724.9,2724.3,4.45969]
[1739996017945,4.5403729,2724.9,2724.4,3.67044]
[1739996018251,8.2102329,2724.9,2724.4,3.67044]
[1739996018752,11.8801829,2724.9,2724.3,0.7891]
[1739996018959,8.2102329,2724.9,2724.3,4.45976]
[1739996019314,11.8801629,2724.9,2724.3,4.45976]
[1739996019560,8.2102329,2724.9,2724.3,4.45976]
[1739996019713,11.8801729,2724.9,2724.3,4.45976]
[1739996019918,4.85809729,2724.8,2724.3,0.7891]
[1739996020120,0.824,2724.7,2724.2,3.67077]
[1739996020533,0.824,2724.7,2724.3,3.67061]
[1739996020830,0.824,2724.7,2724.2,3.67077]
[1739996021171,4.49413,2724.7,2724.2,3.67077]
[1739996021468,5.76853789,2724.7,2724.2,3.67077]
[1739996021815,5.76853789,2724.7,2724.2,3.67079]
[1739996022165,5.76853789,2724.7,2724.2,3.67074]
[1739996023026,5.76853789,2724.7,2724.2,7.34148]
[1739996023232,2.09840789,2724.7,2724.3,3.67063]
[1739996025056,2.09840789,2724.7,2724.3,3.67057]
[1739996025264,2.09840789,2724.7,2724.2,3.6708]
[1739996026018,2.09840789,2724.7,2724.3,3.6706]
[1739996026747,3.69891143,2724.6,2724.0,4.44586]
[1739996027063,3.69891143,2724.6,2723.8,3.67125]
[1739996027064,5.02266,2724.5,2723.8,3.67125]
[1739996027269,3.67207164,2724.3,2723.7,5.37]
[1739996027438,7.34282164,2724.3,2723.7,9.04147]
[1739996027647,8.5243718,2724.3,2723.7,9.04147]
[1739996027849,4.3036218,2724.3,2723.5,0.7898]
[1739996028151,0.8022,2724.2,2723.7,3.67145]
[1739996028348,1.55299724,2724.2,2723.7,3.67145]
[1739996028553,1.55299724,2724.2,2723.9,3.67118]
[1739996028763,2.13865914,2724.2,2723.9,3.67118]
[1739996029166,2.13865914,2724.2,2724.0,3.67098]
[1739996029363,2.13865914,2724.2,2723.5,0.7898]
[1739996029585,1.55299724,2724.2,2724.0,3.67105]
[1739996029735,1.55299724,2724.2,2723.9,3.67114]
[1739996030250,1.55299724,2724.2,2723.7,3.6714]
[1739996030251,0.55,2724.1,2723.7,3.6714]
[1739996031398,0.55,2724.1,2723.8,3.6712]
[1739996032308,1.55299724,2724.2,2724.0,3.67096]
[1739996032513,2.55650413,2724.2,2723.8,3.67124]
[1739996032804,1.55299724,2724.2,2723.8,3.67124]
[1739996033507,1.55299724,2724.2,2723.8,3.67127]
[1739996034381,1.55299724,2724.2,2723.6,3.67151]
[1739996034589,1.55299724,2724.2,2723.3,0.7898]
[1739996034590,1.55299724,2724.2,2723.8,3.67133]
[1739996034810,1.55299724,2724.2,2723.8,3.67132]
[1739996035168,0.55,2724.1,2723.7,3.67147]
[1739996035506,0.55,2724.1,2723.7,3.67135]
[1739996036010,0.55,2724.1,2723.8,3.67133]
[1739996036621,0.55,2724.1,2723.8,3.67126]
[1739996036775,0.55,2724.1,2723.9,3.67118]
[1739996037313,0.55,2724.1,2723.8,3.67132]
[1739996038007,0.55,2724.1,2723.8,7.34259]
[1739996038209,1.55299724,2724.2,2723.4,3.0]
[1739996038407,1.55299724,2724.2,2723.9,3.67112]
[1739996038607,1.55299724,2724.2,2724.0,3.67106]
[1739996039105,1.3522,2724.2,2724.1,3.67093]
[1739996039270,1.3522,2724.2,2723.9,3.67108]
[1739996039475,1.3522,2724.2,2724.0,3.671]
[1739996040205,1.3522,2724.2,2723.8,3.67124]
[1739996040609,2.10084342,2724.2,2723.9,3.67108]
[1739996040817,2.10084342,2724.2,2724.0,3.671]
[1739996041008,2.10084342,2724.2,2723.9,3.67108]
[1739996041324,1.3522,2724.2,2723.9,3.67108]
[1739996042125,1.3522,2724.2,2723.8,3.67132]
[1739996042276,2.32173015,2724.2,2723.8,3.67132]
[1739996042940,1.3522,2724.2,2723.8,3.67134]
[1739996044374,1.3522,2724.2,2723.7,3.67143]
[1739996044538,1.3522,2724.2,2723.9,3.6712]
[1739996044871,1.3522,2724.2,2723.8,3.67133]
[1739996045157,0.55,2724.1,2723.8,3.67133]
[1739996045656,0.8022,2724.2,2723.6,3.67161]
[1739996045863,0.8022,2724.2,2724.1,3.67093]
[1739996046058,0.55,2724.2,2724.1,3.67093]
[1739996046365,0.8125,2724.7,2724.5,3.67031]
[1739996046572,0.8125,2724.9,2724.7,3.67012]
[1739996046946,1.0825,2725.1,2724.7,3.67004]
[1739996047147,1.50295716,2725.1,2724.7,3.67004]
[1739996047468,0.55,2725.0,2724.6,3.67017]
[1739996047646,0.55,2725.0,2724.5,3.67028]
[1739996048041,1.23295716,2725.1,2724.7,3.67011]
[1739996048658,0.55,2725.0,2724.6,3.67026]
[1739996048868,0.55,2725.0,2724.5,3.67039]
[1739996050368,0.55,2725.0,2724.6,3.67015]
[1739996050550,0.55,2725.0,2724.6,0.7701]
[1739996051067,0.55,2725.0,2724.6,4.44034]
[1739996051588,0.782,2725.5,2725.1,3.6695]
[1739996051878,0.782,2725.5,2725.3,3.66932]
[1739996052036,4.45089,2725.7,2725.1,0.8331]
[1739996052237,4.45089,2725.7,2725.1,4.50261]
[1739996052461,1.56629616,2725.7,2725.2,3.66945]
[1739996053179,0.55,2725.6,2725.2,3.66945]
[1739996053749,0.55,2725.6,2725.2,3.57745]
[1739996054473,1.52519527,2725.7,2725.3,3.6693]
[1739996054799,7.34102164,2725.6,2724.8,4.49282]
[1739996054955,0.55,2725.4,2724.9,7.33955]
[1739996055150,0.55,2725.4,2725.0,3.66969]
[1739996055384,0.7618,2725.5,2725.2,3.66942]
[1739996055592,6.86499527,2725.7,2725.3,3.66924]
[1739996055793,6.86499527,2725.7,2725.4,3.66917]
[1739996056292,0.7618,2725.7,2725.4,7.33824]
[1739996056473,0.7618,2725.7,2725.1,0.8229]
[1739996056775,0.7618,2725.7,2725.2,7.33883]
[1739996056941,0.7618,2725.7,2725.2,3.66938]
[1739996057141,0.7618,2725.7,2725.3,3.66932]
[1739996057771,0.7618,2725.7,2725.5,3.66903]
[1739996057975,2.04018038,2725.9,2725.3,7.33842]
[1739996058183,5.70880038,2725.9,2725.3,7.33845]
[1739996058368,8.83087202,2725.9,2725.4,3.66916]
[1739996058546,8.83087202,2725.9,2725.3,3.66921]
[1739996058874,5.16225202,2725.9,2725.5,3.66903]
[1739996060077,5.16225202,2725.9,2725.4,3.66917]
[1739996060279,5.16225202,2725.9,2725.5,3.669]
[1739996060442,5.16225202,2725.9,2725.4,3.66917]
[1739996060857,5.16225202,2725.9,2725.5,3.66905]
[1739996063962,5.16225202,2725.9,2725.4,3.66917]
[1739996064182,2.04018038,2725.9,2725.4,3.66917]
[1739996064386,2.04018038,2725.9,2725.5,3.66896]
[1739996064889,0.73888038,2725.9,2725.6,3.66881]
[1739996065092,0.7978,2726.3,2725.8,3.66862]
[1739996065246,0.7978,2726.3,2725.9,3.66843]
[1739996065890,0.7978,2726.3,2725.8,3.66863]
[1739996066202,3.66866,2725.8,2725.2,4.49279]
[1739996066579,0.55,2725.7,2725.2,4.49279]
[1739996067548,0.55,2725.5,2725.1,3.66946]
[1739996067755,0.55,2725.5,2725.0,9.03969]
[1739996068077,0.55,2725.5,2725.1,3.66959]
[1739996069480,0.55,2725.5,2725.0,9.03969]
[1739996069683,0.55,2725.5,2725.2,3.66942]
[1739996070481,0.793,2725.6,2725.2,3.66942]
[1739996070690,0.793,2725.6,2725.3,3.66932]
[1739996070845,0.74837409,2725.7,2725.6,3.66891]
[1739996071046,0.74837409,2725.7,2725.4,3.66916]
[1739996071348,0.793,2725.9,2725.4,7.33826]
[1739996071550,0.793,2725.9,2725.4,7.3382]
[1739996071774,0.793,2725.9,2725.4,3.6691]
[1739996072371,0.73538333,2725.8,2725.5,3.66902]
[1739996072576,0.73538333,2725.8,2725.4,3.6691]
[1739996073063,0.55,2725.7,2725.3,0.8023]
[1739996073268,4.21885,2725.7,2725.1,3.66953]
[1739996073790,0.55,2725.7,2725.2,3.66944]
[1739996074503,2.18527983,2725.8,2725.3,3.6693]
[1739996075071,5.85392983,2725.8,2725.3,3.6693]
[1739996075284,5.85392983,2725.8,2724.9,0.7961]
[1739996075285,2.18527983,2725.8,2725.5,3.66896]
[1739996075483,2.18527983,2725.8,2724.9,0.7961]
[1739996075784,2.18527983,2725.8,2725.3,3.66924]
[1739996076097,2.18527983,2725.8,2725.3,7.33849]
[1739996076405,5.85397983,2725.8,2725.3,7.33848]
[1739996077284,2.18527983,2725.8,2725.3,3.66924]
[1739996077599,0.73538333,2725.8,2725.4,3.66916]
[1739996077806,4.40403333,2725.8,2725.4,3.66916]
[1739996078107,0.73538333,2725.8,2725.4,3.66916]
[1739996078409,4.40410333,2725.8,2725.3,3.6693]
[1739996078713,0.73538333,2725.8,2725.3,3.6693]
[1739996079012,0.7873,2726.1,2725.6,3.66891]
[1739996079308,0.7873,2726.1,2725.7,3.66878]
[1739996079609,1.52882238,2726.1,2725.7,3.66878]
[1739996080166,1.52882238,2726.1,2725.6,3.66881]
[1739996080505,3.66839,2726.0,2725.5,3.66895]
[1739996080809,3.26352778,2726.1,2725.5,3.66893]
[1739996081105,0.8317,2725.8,2725.3,3.66921]
[1739996081708,4.50035,2725.8,2725.2,3.66944]
[1739996081908,5.68444416,2725.8,2725.2,3.66944]
[1739996082075,5.68444416,2725.8,2725.3,3.6693]
[1739996083075,0.8317,2725.8,2725.7,3.66878]
[1739996083275,1.0494,2726.1,2725.8,3.66862]
[1739996083684,1.0494,2726.1,2725.8,3.66856]
[1739996084192,1.0494,2726.1,2725.7,3.6687]
[1739996084378,1.0494,2726.1,2725.8,3.66864]
[1739996084983,1.0494,2726.1,2725.7,3.66876]
[1739996086116,5.94180052,2726.1,2725.5,3.66904]
[1739996086307,5.94176052,2726.1,2725.6,3.6689]
[1739996087219,5.67176052,2726.1,2725.6,3.6689]
[1739996087428,4.44766,2726.1,2725.6,3.6689]
[1739996087581,4.44766,2726.1,2725.5,3.66904]
[1739996087782,3.66849,2726.0,2725.4,3.66913]
[1739996087997,0.7673,2725.9,2725.4,3.66913]
[1739996090125,4.43582,2725.9,2725.4,3.66913]
[1739996090325,5.55843516,2725.9,2725.4,3.66913]
[1739996091944,0.55,2725.8,2725.3,3.66923]
[1739996092238,4.2187,2725.8,2725.3,3.66923]
[1739996092422,4.2187,2725.8,2725.3,7.33849]
[1739996092743,4.2187,2725.8,2725.4,3.66912]
[1739996093026,5.50861468,2725.8,2725.4,3.66912]
[1739996094541,1.83991468,2725.8,2725.4,3.66912]
[1739996095722,1.83991468,2725.8,2725.3,3.66923]
[1739996095907,0.55,2725.8,2725.6,3.66891]
[1739996096109,0.55,2725.8,2725.5,3.66904]
[1739996096341,0.55,2725.8,2725.4,3.66918]
[1739996096699,4.21865,2725.8,2725.4,3.66918]
[1739996096898,0.55,2725.8,2725.4,3.66909]
[1739996097113,1.72763416,2725.8,2725.4,3.66909]
[1739996098436,5.39628416,2725.8,2725.4,3.66909]
[1739996100836,5.39628416,2725.8,2725.3,3.66929]
[1739996101243,5.39628416,2725.8,2725.2,3.66935]
[1739996101537,4.21965,2725.1,2724.5,3.67028]
[1739996101739,0.55,2724.9,2724.5,3.67033]
[1739996101939,0.55,2724.9,2724.3,5.37]
[1739996102104,1.0885,2725.2,2724.9,3.66985]
[1739996102311,0.55,2725.1,2724.9,3.66985]
[1739996102771,0.55,2725.1,2724.8,3.66998]
[1739996104441,0.55,2725.1,2724.6,3.67018]
[1739996104640,0.55,2725.1,2724.7,3.67007]
[1739996104813,0.55,2725.1,2724.8,3.66988]
[1739996105950,0.55,2725.1,2724.7,3.67012]
[1739996106147,0.7524,2724.8,2724.3,9.04066]
[1739996106351,0.7524,2724.8,2724.5,3.67038]
[1739996106652,0.55,2724.7,2724.3,3.67066]
[1739996106855,0.55,2724.7,2724.4,3.67049]
[1739996107215,0.55,2724.7,2724.1,3.67092]
[1739996107216,0.55,2724.5,2724.1,3.67092]
[1739996107645,0.55,2724.5,2724.1,3.67086]
[1739996109858,0.55,2724.5,2724.2,3.67068]
[1739996110150,0.55,2724.5,2724.1,3.67086]
[1739996110366,0.55,2724.5,2724.1,7.34171]
[1739996110542,0.55,2724.5,2724.1,3.67085]